[Event "Titled Tuesday Blitz May 30 Early 2023"]
[White "Goffredo_Fofi"]
[Black "Aradhya, Garg"]
[BlackFideId "25006746"]
[WhiteElo "2496"]
[BlackElo "2263"]
[Result "0-1"]
[Round "09"]
[TimeControl "180+2"]
[Date "2023.05.30"]
[WhiteClock "0:00:00"]
[BlackClock "0:00:38"]

1. d4 {[%clk 0:02:24]}  d5 {[%clk 0:01:45]} 2. Nf3 {[%clk 0:02:24]}  Nf6 {[%clk 0:01:44]} 3. Bf4 {[%clk 0:02:24]}  Bf5 {[%clk 0:01:43]} 4. c4 {[%clk 0:02:24]}  e6 {[%clk 0:01:43]} 5. Nc3 {[%clk 0:02:24]}  dxc4 {[%clk 0:01:43]} 6. e3 {[%clk 0:02:22]}  Bb4 {[%clk 0:01:41]} 7. Bxc4 {[%clk 0:02:20]}  O-O {[%clk 0:01:41]} 8. O-O {[%clk 0:02:19]}  c5 {[%clk 0:01:41]} 9. dxc5 {[%clk 0:01:55]}  Bxc5 {[%clk 0:01:41]} 10. Nb5 {[%clk 0:01:41]}  Nc6 {[%clk 0:01:39]} 11. Bd6 {[%clk 0:01:31]}  Bxd6 {[%clk 0:01:36]} 12. Nxd6 {[%clk 0:01:31]}  Qe7 {[%clk 0:01:34]} 13. Nxf5 {[%clk 0:01:31]}  exf5 {[%clk 0:01:35]} 14. Rc1 {[%clk 0:01:25]}  Rfd8 {[%clk 0:01:35]} 15. Qa4 {[%clk 0:01:23]}  g6 {[%clk 0:01:31]} 16. h3 {[%clk 0:01:21]}  Kg7 {[%clk 0:01:31]} 17. Bb5 {[%clk 0:01:20]}  Ne5 {[%clk 0:01:31]} 18. Nd4 {[%clk 0:01:18]}  Ne4 {[%clk 0:01:22]} 19. Be2 {[%clk 0:01:07]}  a6 {[%clk 0:01:19]} 20. Qa5 {[%clk 0:00:47]}  Rdc8 {[%clk 0:01:15]} 21. Rfd1 {[%clk 0:00:46]}  Nc5 {[%clk 0:00:47]} 22. Qa3 {[%clk 0:00:38]}  Qf8 {[%clk 0:00:43]} 23. Nf3 {[%clk 0:00:35]}  Nxf3+ {[%clk 0:00:40]} 24. Bxf3 {[%clk 0:00:36]}  Ne4 {[%clk 0:00:41]} 25. Qxf8+ {[%clk 0:00:29]}  Kxf8 {[%clk 0:00:41]} 26. Bxe4 {[%clk 0:00:30]}  fxe4 {[%clk 0:00:41]} 27. Kf1 {[%clk 0:00:31]}  Ke7 {[%clk 0:00:41]} 28. Ke2 {[%clk 0:00:31]}  Ke6 {[%clk 0:00:40]} 29. Rxc8 {[%clk 0:00:28]}  Rxc8 {[%clk 0:00:40]} 30. Rd4 {[%clk 0:00:27]}  Rc2+ {[%clk 0:00:39]} 31. Rd2 {[%clk 0:00:27]}  Rc1 {[%clk 0:00:40]} 32. Rd4 {[%clk 0:00:24]}  f5 {[%clk 0:00:39]} 33. Rb4 {[%clk 0:00:20]}  Rc2+ {[%clk 0:00:39]} 34. Ke1 {[%clk 0:00:19]}  b5 {[%clk 0:00:39]} 35. a3 {[%clk 0:00:18]}  Kd5 {[%clk 0:00:38]} 36. a4 {[%clk 0:00:18]}  Kc5 {[%clk 0:00:38]} 37. Rb3 {[%clk 0:00:00]}  b4 {[%clk 0:00:38]} 0-1


[Site "https://www.chess.com"]

[Event "Titled Tuesday Blitz May 30 Early 2023"]
[White "Vlassov, Nikolai"]
[Black "Liu, Casper"]
[WhiteFideId "4103360"]
[BlackFideId "1454153"]
[WhiteElo "2324"]
[BlackElo "2221"]
[Result "1/2-1/2"]
[Round "09"]
[TimeControl "180+2"]
[Date "2023.05.30"]
[WhiteClock "0:00:07"]
[BlackClock "0:00:20"]

1. e4 {[%clk 0:03:00]}  c5 {[%clk 0:02:56]} 2. c3 {[%clk 0:03:00]}  e5 {[%clk 0:02:52]} 3. Nf3 {[%clk 0:03:00]}  Nc6 {[%clk 0:02:52]} 4. Bc4 {[%clk 0:03:00]}  d6 {[%clk 0:02:50]} 5. O-O {[%clk 0:02:57]}  Be7 {[%clk 0:02:50]} 6. d4 {[%clk 0:02:57]}  Nf6 {[%clk 0:02:46]} 7. d5 {[%clk 0:02:47]}  Nb8 {[%clk 0:02:46]} 8. Bd3 {[%clk 0:02:45]}  O-O {[%clk 0:02:47]} 9. a4 {[%clk 0:02:36]}  Nbd7 {[%clk 0:02:46]} 10. Nfd2 {[%clk 0:02:29]}  h6 {[%clk 0:02:32]} 11. Nc4 {[%clk 0:02:23]}  Ne8 {[%clk 0:02:29]} 12. b4 {[%clk 0:02:14]}  f5 {[%clk 0:02:28]} 13. exf5 {[%clk 0:02:11]}  Ndf6 {[%clk 0:02:24]} 14. bxc5 {[%clk 0:02:06]}  dxc5 {[%clk 0:02:23]} 15. Nxe5 {[%clk 0:01:50]}  Nxd5 {[%clk 0:02:16]} 16. Ng6 {[%clk 0:00:59]}  Rf7 {[%clk 0:02:16]} 17. Bc4 {[%clk 0:00:56]}  Nec7 {[%clk 0:02:15]} 18. Nxe7+ {[%clk 0:00:52]}  Rxe7 {[%clk 0:02:15]} 19. f6 {[%clk 0:00:52]}  gxf6 {[%clk 0:02:11]} 20. Bxh6 {[%clk 0:00:51]}  Be6 {[%clk 0:02:11]} 21. Re1 {[%clk 0:00:41]}  Nb6 {[%clk 0:01:55]} 22. Bxe6+ {[%clk 0:00:30]}  Nxe6 {[%clk 0:01:45]} 23. Na3 {[%clk 0:00:19]}  Qxd1 {[%clk 0:01:21]} 24. Raxd1 {[%clk 0:00:18]}  Nxa4 {[%clk 0:01:22]} 25. Rd6 {[%clk 0:00:17]}  Rae8 {[%clk 0:01:22]} 26. Nb5 {[%clk 0:00:14]}  a6 {[%clk 0:01:15]} 27. Na3 {[%clk 0:00:12]}  Nxc3 {[%clk 0:01:15]} 28. g3 {[%clk 0:00:11]}  Nd4 {[%clk 0:01:12]} 29. Rxe7 {[%clk 0:00:11]}  Rxe7 {[%clk 0:01:13]} 30. Rxf6 {[%clk 0:00:10]}  b5 {[%clk 0:01:13]} 31. Rxa6 {[%clk 0:00:09]}  b4 {[%clk 0:01:13]} 32. Nc4 {[%clk 0:00:08]}  b3 {[%clk 0:01:14]} 33. Kg2 {[%clk 0:00:08]}  Re2 {[%clk 0:01:12]} 34. Rb6 {[%clk 0:00:08]}  Na4 {[%clk 0:01:10]} 35. Rb8+ {[%clk 0:00:07]}  Kh7 {[%clk 0:01:11]} 36. Be3 {[%clk 0:00:07]}  b2 {[%clk 0:01:10]} 37. Kf1 {[%clk 0:00:04]}  Rc2 {[%clk 0:01:08]} 38. Nxb2 {[%clk 0:00:04]}  Rxb2 {[%clk 0:01:01]} 39. Ra8 {[%clk 0:00:04]}  Nc3 {[%clk 0:00:59]} 40. Rc8 {[%clk 0:00:04]}  Ne4 {[%clk 0:00:59]} 41. Re8 {[%clk 0:00:04]}  Nd6 {[%clk 0:00:49]} 42. Re7+ {[%clk 0:00:03]}  Kg8 {[%clk 0:00:47]} 43. Re5 {[%clk 0:00:04]}  Rc2 {[%clk 0:00:42]} 44. Bxd4 {[%clk 0:00:04]}  cxd4 {[%clk 0:00:36]} 45. Rd5 {[%clk 0:00:05]}  Ne4 {[%clk 0:00:18]} 46. Rxd4 {[%clk 0:00:05]}  Nxf2 {[%clk 0:00:17]} 47. h4 {[%clk 0:00:05]}  Kh7 {[%clk 0:00:17]} 48. g4 {[%clk 0:00:06]}  Nh3 {[%clk 0:00:16]} 49. g5 {[%clk 0:00:06]}  Rf2+ {[%clk 0:00:16]} 50. Ke1 {[%clk 0:00:06]}  Rh2 {[%clk 0:00:16]} 51. h5 {[%clk 0:00:06]}  Nxg5 {[%clk 0:00:16]} 52. Rd7+ {[%clk 0:00:06]}  Kh6 {[%clk 0:00:16]} 53. Kf1 {[%clk 0:00:07]}  Kxh5 {[%clk 0:00:17]} 54. Rd8 {[%clk 0:00:07]}  Ra2 {[%clk 0:00:17]} 55. Rd4 {[%clk 0:00:06]}  Nf3 {[%clk 0:00:16]} 56. Rf4 {[%clk 0:00:05]}  Nh2+ {[%clk 0:00:15]} 57. Kg1 {[%clk 0:00:05]}  Ng4 {[%clk 0:00:15]} 58. Rf3 {[%clk 0:00:04]}  Kh4 {[%clk 0:00:16]} 59. Rf8 {[%clk 0:00:04]}  Ne3 {[%clk 0:00:15]} 60. Rh8+ {[%clk 0:00:03]}  Kg3 {[%clk 0:00:15]} 61. Rg8+ {[%clk 0:00:04]}  Ng4 {[%clk 0:00:15]} 62. Rf8 {[%clk 0:00:04]}  Rg2+ {[%clk 0:00:11]} 63. Kf1 {[%clk 0:00:03]}  Ra2 {[%clk 0:00:11]} 64. Ke1 {[%clk 0:00:03]}  Ne3 {[%clk 0:00:11]} 65. Rf7 {[%clk 0:00:02]}  Ng2+ {[%clk 0:00:09]} 66. Kd1 {[%clk 0:00:01]}  Nf4 {[%clk 0:00:10]} 67. Kc1 {[%clk 0:00:01]}  Kf3 {[%clk 0:00:11]} 68. Kb1 {[%clk 0:00:01]}  Rg2 {[%clk 0:00:11]} 69. Rf8 {[%clk 0:00:02]}  Ke3 {[%clk 0:00:12]} 70. Re8+ {[%clk 0:00:03]}  Kd3 {[%clk 0:00:12]} 71. Rd8+ {[%clk 0:00:03]}  Kc3 {[%clk 0:00:13]} 72. Rc8+ {[%clk 0:00:04]}  Kd4 {[%clk 0:00:14]} 73. Rb8 {[%clk 0:00:04]}  Nd5 {[%clk 0:00:14]} 74. Rc8 {[%clk 0:00:04]}  Nc3+ {[%clk 0:00:14]} 75. Kc1 {[%clk 0:00:05]}  Kd3 {[%clk 0:00:15]} 76. Rd8+ {[%clk 0:00:05]}  Kc4 {[%clk 0:00:15]} 77. Rc8+ {[%clk 0:00:05]}  Kd4 {[%clk 0:00:16]} 78. Rd8+ {[%clk 0:00:06]}  Nd5 {[%clk 0:00:17]} 79. Kb1 {[%clk 0:00:06]}  Kc4 {[%clk 0:00:16]} 80. Rc8+ {[%clk 0:00:06]}  Kb3 {[%clk 0:00:16]} 81. Rb8+ {[%clk 0:00:06]}  Nb4 {[%clk 0:00:17]} 82. Kc1 {[%clk 0:00:06]}  Kc3 {[%clk 0:00:18]} 83. Kd1 {[%clk 0:00:06]}  Nd3 {[%clk 0:00:17]} 84. Rc8+ {[%clk 0:00:06]}  Kd4 {[%clk 0:00:18]} 85. Rd8+ {[%clk 0:00:06]}  Ke4 {[%clk 0:00:19]} 86. Re8+ {[%clk 0:00:07]}  Kf3 {[%clk 0:00:19]} 87. Re3+ {[%clk 0:00:07]}  Kxe3 {[%clk 0:00:20]} 1/2-1/2


[Site "https://www.chess.com"]

[Event "Titled Tuesday Blitz May 30 Early 2023"]
[White "Bolourchifard, Farzad"]
[Black "Janaszak, Dawid"]
[WhiteFideId "12510084"]
[BlackFideId "1119206"]
[WhiteElo "2317"]
[BlackElo "2220"]
[Result "0-1"]
[Round "09"]
[TimeControl "180+2"]
[Date "2023.05.30"]
[WhiteClock "0:00:05"]
[BlackClock "0:00:48"]

1. d4 {[%clk 0:03:00]}  d5 {[%clk 0:02:59]} 2. Nf3 {[%clk 0:03:01]}  c5 {[%clk 0:02:58]} 3. e3 {[%clk 0:02:58]}  Nc6 {[%clk 0:02:56]} 4. c3 {[%clk 0:02:56]}  cxd4 {[%clk 0:02:53]} 5. exd4 {[%clk 0:02:56]}  Nf6 {[%clk 0:02:53]} 6. h3 {[%clk 0:02:56]}  Bf5 {[%clk 0:02:47]} 7. Nh4 {[%clk 0:02:53]}  Be4 {[%clk 0:02:41]} 8. Nd2 {[%clk 0:02:53]}  e6 {[%clk 0:02:41]} 9. Nxe4 {[%clk 0:02:46]}  Nxe4 {[%clk 0:02:40]} 10. Nf3 {[%clk 0:02:45]}  Bd6 {[%clk 0:02:40]} 11. Bd3 {[%clk 0:02:44]}  O-O {[%clk 0:02:40]} 12. O-O {[%clk 0:02:43]}  f5 {[%clk 0:02:40]} 13. a4 {[%clk 0:02:40]}  Qf6 {[%clk 0:02:37]} 14. c4 {[%clk 0:02:34]}  dxc4 {[%clk 0:02:37]} 15. Bxc4 {[%clk 0:02:32]}  Rad8 {[%clk 0:02:36]} 16. a5 {[%clk 0:02:05]}  Bc7 {[%clk 0:02:33]} 17. a6 {[%clk 0:01:25]}  b6 {[%clk 0:02:26]} 18. Be3 {[%clk 0:01:16]}  f4 {[%clk 0:02:18]} 19. Bc1 {[%clk 0:01:04]}  Nxd4 {[%clk 0:02:12]} 20. Nxd4 {[%clk 0:01:04]}  Rxd4 {[%clk 0:02:13]} 21. Bxe6+ {[%clk 0:01:04]}  Kh8 {[%clk 0:02:10]} 22. Qb3 {[%clk 0:00:52]}  Nc5 {[%clk 0:02:08]} 23. Qc3 {[%clk 0:00:48]}  Nxe6 {[%clk 0:02:03]} 24. Re1 {[%clk 0:00:47]}  Rd6 {[%clk 0:01:45]} 25. Qc4 {[%clk 0:00:29]}  Nc5 {[%clk 0:01:21]} 26. Rb1 {[%clk 0:00:18]}  Nd3 {[%clk 0:01:13]} 27. Rf1 {[%clk 0:00:18]}  Bb8 {[%clk 0:01:08]} 28. b3 {[%clk 0:00:18]}  Nxc1 {[%clk 0:01:05]} 29. Rbxc1 {[%clk 0:00:18]}  h6 {[%clk 0:01:06]} 30. Rc3 {[%clk 0:00:16]}  Rd4 {[%clk 0:01:00]} 31. Qb5 {[%clk 0:00:14]}  Bd6 {[%clk 0:00:56]} 32. Rf3 {[%clk 0:00:13]}  Bc5 {[%clk 0:00:54]} 33. Re1 {[%clk 0:00:11]}  Rd2 {[%clk 0:00:52]} 34. b4 {[%clk 0:00:11]}  Rb2 {[%clk 0:00:49]} 35. Qc6 {[%clk 0:00:05]}  Qxc6 {[%clk 0:00:48]} 0-1


[Site "https://www.chess.com"]

[Event "Titled Tuesday Blitz May 30 Early 2023"]
[White "Pinheiro, Iung Alicio de O."]
[Black "Heinemann, Josefine"]
[WhiteFideId "2104350"]
[BlackFideId "12900460"]
[WhiteElo "2283"]
[BlackElo "2342"]
[Result "1-0"]
[Round "09"]
[TimeControl "180+2"]
[Date "2023.05.30"]
[WhiteClock "0:00:36"]
[BlackClock "0:01:15"]

1. e4 {[%clk 0:03:00]}  e5 {[%clk 0:02:59]} 2. Nf3 {[%clk 0:02:59]}  Nc6 {[%clk 0:02:58]} 3. Bc4 {[%clk 0:02:59]}  Nf6 {[%clk 0:02:54]} 4. Ng5 {[%clk 0:02:59]}  d5 {[%clk 0:02:54]} 5. exd5 {[%clk 0:03:00]}  b5 {[%clk 0:02:52]} 6. Bf1 {[%clk 0:02:54]}  Nxd5 {[%clk 0:02:52]} 7. Qh5 {[%clk 0:01:52]}  Qd7 {[%clk 0:02:23]} 8. Bxb5 {[%clk 0:01:49]}  Bb7 {[%clk 0:02:23]} 9. O-O {[%clk 0:01:33]}  g6 {[%clk 0:02:23]} 10. Qf3 {[%clk 0:01:32]}  Bg7 {[%clk 0:02:11]} 11. Nc3 {[%clk 0:01:28]}  Ndb4 {[%clk 0:02:00]} 12. d4 {[%clk 0:01:06]}  exd4 {[%clk 0:01:42]} 13. Re1+ {[%clk 0:01:03]}  Kf8 {[%clk 0:01:42]} 14. Ne6+ {[%clk 0:00:48]}  Kg8 {[%clk 0:01:42]} 15. Nxg7 {[%clk 0:00:46]}  Kxg7 {[%clk 0:01:43]} 16. Bg5 {[%clk 0:00:45]}  Rhe8 {[%clk 0:01:33]} 17. Qf6+ {[%clk 0:00:35]}  Kg8 {[%clk 0:01:15]} 18. Bh6 {[%clk 0:00:36]} 1-0


[Site "https://www.chess.com"]

[Event "Titled Tuesday Blitz May 30 Early 2023"]
[White "koncheto"]
[Black "Fan_Of_Chucky"]
[WhiteElo "2588"]
[BlackElo "2466"]
[Result "1-0"]
[Round "09"]
[TimeControl "180+2"]
[Date "2023.05.30"]
[WhiteClock "0:00:08"]
[BlackClock "0:00:00"]

1. e4 {[%clk 0:03:00]}  c5 {[%clk 0:02:32]} 2. Nf3 {[%clk 0:02:44]}  a6 {[%clk 0:02:32]} 3. c4 {[%clk 0:02:44]}  Nc6 {[%clk 0:02:32]} 4. d4 {[%clk 0:02:43]}  cxd4 {[%clk 0:02:33]} 5. Nxd4 {[%clk 0:02:43]}  e5 {[%clk 0:02:33]} 6. Nc2 {[%clk 0:02:43]}  Nf6 {[%clk 0:02:29]} 7. Nc3 {[%clk 0:02:38]}  Bc5 {[%clk 0:02:29]} 8. Be3 {[%clk 0:02:37]}  Bxe3 {[%clk 0:02:26]} 9. Nxe3 {[%clk 0:02:38]}  O-O {[%clk 0:02:25]} 10. Be2 {[%clk 0:02:35]}  Nd4 {[%clk 0:02:19]} 11. O-O {[%clk 0:02:35]}  d6 {[%clk 0:02:20]} 12. b3 {[%clk 0:02:27]}  Bd7 {[%clk 0:02:17]} 13. Qd2 {[%clk 0:02:19]}  b5 {[%clk 0:02:16]} 14. Rfd1 {[%clk 0:02:06]}  bxc4 {[%clk 0:02:16]} 15. Bxc4 {[%clk 0:01:54]}  Bc6 {[%clk 0:02:12]} 16. f3 {[%clk 0:01:53]}  Bb5 {[%clk 0:02:03]} 17. Ne2 {[%clk 0:01:50]}  Nxe2+ {[%clk 0:01:55]} 18. Qxe2 {[%clk 0:01:51]}  Qb6 {[%clk 0:01:54]} 19. Kh1 {[%clk 0:01:47]}  Rfd8 {[%clk 0:01:39]} 20. Nd5 {[%clk 0:01:31]}  Nxd5 {[%clk 0:01:37]} 21. Rxd5 {[%clk 0:01:32]}  Bxc4 {[%clk 0:01:32]} 22. Qxc4 {[%clk 0:01:32]}  Rac8 {[%clk 0:01:33]} 23. Qd3 {[%clk 0:01:29]}  Rc6 {[%clk 0:01:25]} 24. Rd1 {[%clk 0:01:27]}  Qc7 {[%clk 0:01:24]} 25. h3 {[%clk 0:00:57]}  Kf8 {[%clk 0:01:23]} 26. Rxe5 {[%clk 0:00:34]}  dxe5 {[%clk 0:01:20]} 27. Qxd8+ {[%clk 0:00:34]}  Qxd8 {[%clk 0:01:21]} 28. Rxd8+ {[%clk 0:00:34]}  Ke7 {[%clk 0:01:22]} 29. Rd5 {[%clk 0:00:34]}  Ke6 {[%clk 0:01:17]} 30. Ra5 {[%clk 0:00:34]}  g6 {[%clk 0:01:13]} 31. b4 {[%clk 0:00:31]}  f5 {[%clk 0:01:00]} 32. Kg1 {[%clk 0:00:16]}  Kf6 {[%clk 0:00:49]} 33. a4 {[%clk 0:00:12]}  Rb6 {[%clk 0:00:35]} 34. b5 {[%clk 0:00:08]}  axb5 {[%clk 0:00:33]} 35. axb5 {[%clk 0:00:05]}  Kg5 {[%clk 0:00:33]} 36. g3 {[%clk 0:00:02]}  h5 {[%clk 0:00:30]} 37. Kf2 {[%clk 0:00:02]}  h4 {[%clk 0:00:27]} 38. exf5 {[%clk 0:00:01]}  gxf5 {[%clk 0:00:27]} 39. Kg2 {[%clk 0:00:01]}  Rd6 {[%clk 0:00:22]} 40. gxh4+ {[%clk 0:00:02]}  Kxh4 {[%clk 0:00:22]} 41. Ra4+ {[%clk 0:00:03]}  f4 {[%clk 0:00:20]} 42. Rb4 {[%clk 0:00:03]}  Rd2+ {[%clk 0:00:20]} 43. Kf1 {[%clk 0:00:04]}  Kg3 {[%clk 0:00:16]} 44. b6 {[%clk 0:00:04]}  Rd8 {[%clk 0:00:04]} 45. b7 {[%clk 0:00:04]}  Rb8 {[%clk 0:00:04]} 46. Ke2 {[%clk 0:00:04]}  Kxh3 {[%clk 0:00:04]} 47. Kd3 {[%clk 0:00:04]}  Kg3 {[%clk 0:00:03]} 48. Ke4 {[%clk 0:00:05]}  Kg2 {[%clk 0:00:03]} 49. Rb3 {[%clk 0:00:05]}  Kg3 {[%clk 0:00:02]} 50. Kxe5 {[%clk 0:00:05]}  Re8+ {[%clk 0:00:01]} 51. Kd6 {[%clk 0:00:05]}  Rb8 {[%clk 0:00:01]} 52. Kc7 {[%clk 0:00:06]}  Rf8 {[%clk 0:00:01]} 53. b8=Q {[%clk 0:00:07]}  Rxb8 {[%clk 0:00:00]} 54. Kxb8 {[%clk 0:00:08]} 1-0


[Site "https://www.chess.com"]

[Event "Titled Tuesday Blitz May 30 Early 2023"]
[White "Garv Gaur"]
[Black "Grave, Jacob Templen"]
[WhiteFideId "45030839"]
[BlackFideId "1542656"]
[WhiteElo "2068"]
[BlackElo "2189"]
[Result "1-0"]
[Round "09"]
[TimeControl "180+2"]
[Date "2023.05.30"]
[WhiteClock "0:00:54"]
[BlackClock "0:00:02"]

1. Nf3 {[%clk 0:03:00]}  c5 {[%clk 0:02:55]} 2. g3 {[%clk 0:03:00]}  b6 {[%clk 0:02:52]} 3. Bg2 {[%clk 0:02:56]}  Bb7 {[%clk 0:02:52]} 4. O-O {[%clk 0:02:56]}  Nf6 {[%clk 0:02:51]} 5. a3 {[%clk 0:02:56]}  e6 {[%clk 0:02:51]} 6. c4 {[%clk 0:02:53]}  Be7 {[%clk 0:02:50]} 7. Nc3 {[%clk 0:02:54]}  O-O {[%clk 0:02:50]} 8. d3 {[%clk 0:02:51]}  d5 {[%clk 0:02:45]} 9. b3 {[%clk 0:02:49]}  d4 {[%clk 0:02:37]} 10. Nb1 {[%clk 0:02:47]}  Nc6 {[%clk 0:02:33]} 11. Nbd2 {[%clk 0:02:45]}  Qc7 {[%clk 0:02:27]} 12. Bb2 {[%clk 0:02:41]}  h6 {[%clk 0:02:14]} 13. Re1 {[%clk 0:02:33]}  Rad8 {[%clk 0:02:10]} 14. Qc2 {[%clk 0:02:33]}  Rfe8 {[%clk 0:02:05]} 15. Rad1 {[%clk 0:02:30]}  a5 {[%clk 0:01:32]} 16. Nf1 {[%clk 0:02:21]}  e5 {[%clk 0:01:25]} 17. e3 {[%clk 0:02:19]}  Bd6 {[%clk 0:01:05]} 18. N1d2 {[%clk 0:02:07]}  Nd7 {[%clk 0:01:01]} 19. exd4 {[%clk 0:02:03]}  exd4 {[%clk 0:01:01]} 20. Ne4 {[%clk 0:02:02]}  Bf8 {[%clk 0:01:01]} 21. Nh4 {[%clk 0:02:02]}  g6 {[%clk 0:00:42]} 22. Bc1 {[%clk 0:02:00]}  Bg7 {[%clk 0:00:36]} 23. Bf4 {[%clk 0:01:59]}  Nde5 {[%clk 0:00:34]} 24. Nf3 {[%clk 0:01:58]}  Nxf3+ {[%clk 0:00:32]} 25. Bxf3 {[%clk 0:01:59]}  Qd7 {[%clk 0:00:32]} 26. Nd6 {[%clk 0:01:55]}  Rxe1+ {[%clk 0:00:32]} 27. Rxe1 {[%clk 0:01:56]}  Ba8 {[%clk 0:00:31]} 28. Bd5 {[%clk 0:01:52]}  Rf8 {[%clk 0:00:20]} 29. Nb5 {[%clk 0:01:46]}  Nb4 {[%clk 0:00:14]} 30. axb4 {[%clk 0:01:41]}  Bxd5 {[%clk 0:00:15]} 31. cxd5 {[%clk 0:01:33]}  Qxb5 {[%clk 0:00:15]} 32. bxc5 {[%clk 0:01:32]}  bxc5 {[%clk 0:00:13]} 33. d6 {[%clk 0:01:31]}  Rd8 {[%clk 0:00:11]} 34. Re7 {[%clk 0:01:20]}  g5 {[%clk 0:00:10]} 35. Be5 {[%clk 0:01:17]}  Bxe5 {[%clk 0:00:09]} 36. Rxe5 {[%clk 0:01:18]}  Rxd6 {[%clk 0:00:09]} 37. Rxc5 {[%clk 0:01:18]}  Qb4 {[%clk 0:00:05]} 38. Re5 {[%clk 0:01:11]}  Rf6 {[%clk 0:00:04]} 39. Qc8+ {[%clk 0:01:09]}  Kg7 {[%clk 0:00:04]} 40. Re8 {[%clk 0:01:10]}  Rb6 {[%clk 0:00:01]} 41. Rg8+ {[%clk 0:01:08]}  Kf6 {[%clk 0:00:02]} 42. Qd8+ {[%clk 0:01:03]}  Kf5 {[%clk 0:00:02]} 43. Qd5+ {[%clk 0:01:02]}  Kg4 {[%clk 0:00:02]} 44. Kg2 {[%clk 0:00:55]}  Qxb3 {[%clk 0:00:02]} 45. Qf3# {[%clk 0:00:54]} 1-0


[Site "https://www.chess.com"]

[Event "Titled Tuesday Blitz May 30 Early 2023"]
[White "Srebrnic, Marko"]
[Black "Do Nascimento,Christian Almeida"]
[WhiteFideId "14603616"]
[BlackFideId "2143801"]
[WhiteElo "2341"]
[BlackElo "2118"]
[Result "1-0"]
[Round "09"]
[TimeControl "180+2"]
[Date "2023.05.30"]
[WhiteClock "0:00:12"]
[BlackClock "0:00:07"]

1. e4 {[%clk 0:02:13]}  c5 {[%clk 0:02:42]} 2. Nf3 {[%clk 0:02:12]}  d6 {[%clk 0:02:40]} 3. g3 {[%clk 0:02:12]}  Nf6 {[%clk 0:02:39]} 4. Qe2 {[%clk 0:02:12]}  Nc6 {[%clk 0:02:39]} 5. c3 {[%clk 0:02:12]}  g6 {[%clk 0:02:38]} 6. Bg2 {[%clk 0:02:13]}  Bg7 {[%clk 0:02:38]} 7. O-O {[%clk 0:02:14]}  O-O {[%clk 0:02:39]} 8. Na3 {[%clk 0:02:13]}  a6 {[%clk 0:02:38]} 9. Nc2 {[%clk 0:02:13]}  b5 {[%clk 0:02:37]} 10. a4 {[%clk 0:02:13]}  b4 {[%clk 0:02:36]} 11. d3 {[%clk 0:02:08]}  a5 {[%clk 0:02:36]} 12. Rd1 {[%clk 0:02:05]}  Ba6 {[%clk 0:02:35]} 13. Qe1 {[%clk 0:02:05]}  Rb8 {[%clk 0:02:30]} 14. Ne3 {[%clk 0:02:03]}  Nd7 {[%clk 0:02:12]} 15. d4 {[%clk 0:01:59]}  bxc3 {[%clk 0:02:04]} 16. bxc3 {[%clk 0:01:59]}  cxd4 {[%clk 0:02:04]} 17. cxd4 {[%clk 0:02:00]}  Nb4 {[%clk 0:02:01]} 18. Bf1 {[%clk 0:01:53]}  Bb7 {[%clk 0:01:54]} 19. Nc4 {[%clk 0:01:36]}  Nc2 {[%clk 0:01:45]} 20. Qc3 {[%clk 0:01:36]}  Nxa1 {[%clk 0:01:45]} 21. Qxa1 {[%clk 0:01:37]}  Bxe4 {[%clk 0:01:42]} 22. Ng5 {[%clk 0:01:37]}  Ba8 {[%clk 0:01:29]} 23. Bd2 {[%clk 0:01:30]}  Nb6 {[%clk 0:01:27]} 24. Bxa5 {[%clk 0:01:29]}  e6 {[%clk 0:01:06]} 25. h4 {[%clk 0:01:26]}  Qc7 {[%clk 0:00:57]} 26. Nxb6 {[%clk 0:01:20]}  Rxb6 {[%clk 0:00:47]} 27. Bxb6 {[%clk 0:01:21]}  Qxb6 {[%clk 0:00:47]} 28. Bg2 {[%clk 0:00:53]}  Bxg2 {[%clk 0:00:47]} 29. Kxg2 {[%clk 0:00:54]}  Ra8 {[%clk 0:00:46]} 30. h5 {[%clk 0:00:33]}  Qc6+ {[%clk 0:00:43]} 31. Kh2 {[%clk 0:00:25]}  Rxa4 {[%clk 0:00:33]} 32. Qb2 {[%clk 0:00:20]}  Ra8 {[%clk 0:00:31]} 33. Qe2 {[%clk 0:00:16]}  Qd5 {[%clk 0:00:30]} 34. Nh3 {[%clk 0:00:08]}  Ra2 {[%clk 0:00:28]} 35. Qe3 {[%clk 0:00:06]}  Qxh5 {[%clk 0:00:24]} 36. Rb1 {[%clk 0:00:06]}  Ra8 {[%clk 0:00:14]} 37. Kg2 {[%clk 0:00:06]}  Qd5+ {[%clk 0:00:14]} 38. Kg1 {[%clk 0:00:07]}  h6 {[%clk 0:00:14]} 39. Nf4 {[%clk 0:00:07]}  Qxd4 {[%clk 0:00:14]} 40. Qf3 {[%clk 0:00:06]}  Rc8 {[%clk 0:00:12]} 41. Rd1 {[%clk 0:00:04]}  Qe5 {[%clk 0:00:12]} 42. Nd3 {[%clk 0:00:03]}  Qf5 {[%clk 0:00:11]} 43. Qe2 {[%clk 0:00:02]}  Rc3 {[%clk 0:00:10]} 44. Nf4 {[%clk 0:00:02]}  Be5 {[%clk 0:00:06]} 45. Ng2 {[%clk 0:00:02]}  Rc2 {[%clk 0:00:07]} 46. Qe1 {[%clk 0:00:02]}  h5 {[%clk 0:00:06]} 47. Ne3 {[%clk 0:00:02]}  Qe4 {[%clk 0:00:06]} 48. Nxc2 {[%clk 0:00:03]}  Qxc2 {[%clk 0:00:07]} 49. Qd2 {[%clk 0:00:04]}  Qxd2 {[%clk 0:00:07]} 50. Rxd2 {[%clk 0:00:04]}  Kg7 {[%clk 0:00:07]} 51. Rc2 {[%clk 0:00:05]}  d5 {[%clk 0:00:07]} 52. Kg2 {[%clk 0:00:06]}  f5 {[%clk 0:00:07]} 53. f4 {[%clk 0:00:05]}  Bf6 {[%clk 0:00:06]} 54. Kf3 {[%clk 0:00:06]}  Kf7 {[%clk 0:00:07]} 55. Rc7+ {[%clk 0:00:07]}  Be7 {[%clk 0:00:07]} 56. Rb7 {[%clk 0:00:08]}  Kf6 {[%clk 0:00:07]} 57. Ke2 {[%clk 0:00:08]}  Bd6 {[%clk 0:00:07]} 58. Kf3 {[%clk 0:00:09]}  g5 {[%clk 0:00:08]} 59. fxg5+ {[%clk 0:00:09]}  Kxg5 {[%clk 0:00:08]} 60. Rd7 {[%clk 0:00:09]}  Be5 {[%clk 0:00:08]} 61. Rg7+ {[%clk 0:00:10]}  Kf6 {[%clk 0:00:09]} 62. Rg8 {[%clk 0:00:10]}  Bc3 {[%clk 0:00:09]} 63. Rh8 {[%clk 0:00:10]}  Kg5 {[%clk 0:00:08]} 64. Rg8+ {[%clk 0:00:10]}  Kf6 {[%clk 0:00:09]} 65. Rf8+ {[%clk 0:00:11]}  Ke5 {[%clk 0:00:09]} 66. Rh8 {[%clk 0:00:10]}  Kd4 {[%clk 0:00:09]} 67. Rxh5 {[%clk 0:00:11]}  e5 {[%clk 0:00:09]} 68. Rxf5 {[%clk 0:00:11]}  e4+ {[%clk 0:00:10]} 69. Ke2 {[%clk 0:00:12]}  Kc4 {[%clk 0:00:10]} 70. Ke3 {[%clk 0:00:11]}  Bb2 {[%clk 0:00:11]} 71. Rf8 {[%clk 0:00:10]}  Bc1+ {[%clk 0:00:11]} 72. Ke2 {[%clk 0:00:10]}  Bb2 {[%clk 0:00:11]} 73. g4 {[%clk 0:00:10]}  d4 {[%clk 0:00:08]} 74. Rc8+ {[%clk 0:00:10]}  Kd5 {[%clk 0:00:08]} 75. g5 {[%clk 0:00:11]}  d3+ {[%clk 0:00:08]} 76. Kd2 {[%clk 0:00:11]}  Be5 {[%clk 0:00:09]} 77. g6 {[%clk 0:00:11]}  Bf4+ {[%clk 0:00:09]} 78. Kd1 {[%clk 0:00:11]}  Bh6 {[%clk 0:00:09]} 79. Rh8 {[%clk 0:00:11]}  Bg7 {[%clk 0:00:09]} 80. Rh7 {[%clk 0:00:11]}  Bc3 {[%clk 0:00:09]} 81. g7 {[%clk 0:00:12]}  e3 {[%clk 0:00:09]} 82. g8=Q+ {[%clk 0:00:11]}  Kd4 {[%clk 0:00:08]} 83. Rh4+ {[%clk 0:00:11]}  Kc5 {[%clk 0:00:08]} 84. Qc4+ {[%clk 0:00:11]}  Kd6 {[%clk 0:00:07]} 85. Qxd3+ {[%clk 0:00:12]} 1-0


[Site "https://www.chess.com"]